Workbook

Sheet Resumo
B2: INVESTINDO EM AÇÕES | G2: i | H2: n | I2: c | J2: j
B3: Risk Free | G3: =+(1+C3)^(1/H15)-1 -> 0 | H3: =+NETWORKDAYS(C4,C6) -> 262 | I3: =+C5*C8 -> 30510 | J3: =+((I3*(1+G3)^H3)-I3)*(1-(VLOOKUP((C6-C4),IRRENDAFIXA,2))) -> 0
B4: Data da compra | C4: 2020-01-01
B5: Preço de compra | C5: 30.51
B6: Data da venda | C6: 2020-12-31
B7: Preço de venda | C7: 32.92353497 | F7: =+(C7-C5)/C5 -> 0.07910635746
B8: Quantidade | C8: 1000
B9: (=) Resultado bruto | C9: =+(C7-C5)*C8 -> 2413.534966 | N9: =+B10 -> (-) Corretagem | O9: =+C10 -> -367.5876748
B10: (-) Corretagem | C10: =((-VLOOKUP((C5*C8),corretagem,2)*(C5*C8))-VLOOKUP((C5*C8),corretagem,3))+((-VLOOKUP((C7*C8),corretagem,2)*(C7*C8))-VLOOKUP((C7*C8),corretagem,3)) -> -367.5876748 | N10: =+B11 -> (-) Emolumentos | O10: =+C11 -> -22.20173724
B11: (-) Emolumentos | C11: =-VLOOKUP((C6-C4),emolumentos,2)*C8*(C5+C7) -> -22.20173724 | N11: =+B13 -> (-) IR | O11: =+C13 -> -303.5618331
B12: (=) Resultado antes dos impostos | C12: =SUM(C9:C11) -> 2023.745554 | N12: =+B14 -> (-) Dedo duro | O12: =+C14 -> 0.1011872777
B13: (-) IR | C13: =-VLOOKUP((C6-C4),IR,2)*C12 -> -303.5618331 | H13: 2016-01-01 | N13: =+B16 -> 0 | O13: 0
B14: (-) Dedo duro | C14: =+DEDODURO*C12 -> 0.1011872777 | H14: 2016-12-31 | N14: =+B17 -> (-) Risco | O14: -16858.58208
B15: (=) Resultado nominal | C15: =SUM(C12:C14) -> 1720.284908 | H15: =+NETWORKDAYS(H13,H14) -> 261 | N15: =+B18 -> (=) Resultado efetivo | O15: -15138.29717
B17: (-) Risco | C17: =-(C8*C5)*índice_becaleti -> -16858.58208
B18: (=) Resultado efetivo | C18: =SUM(C15:C17) -> -15138.29717
R20: Variação do preço | S20: =+(C7-C5)/C5 -> 0.07910635746
R21: Total investido | S21: =+C5*C8 -> 30510
B37: =+"Alta de "&TEXT((((C7-C5)/C5)*100),"#.##0,00")&"%" -> Alta de 7,91%
B38: =+"Valor total investido "&TEXT((C5*C8),"#.##0,00") -> Valor total investido 30.510,00 | C38: =+"Tempo em dias: "&TEXT((C6-C4),"#.##0") -> Tempo em dias: 365
B39: =+"GANHO (%) "&TEXT((C18/(C8*C5))*100,"#.##0,00") -> GANHO (%) -49,62

Sheet Alíquotas e taxas
A1: CORRETAGEM
A2: Negociação | B2: Variável | C2: Fixo
A3: 0 | B3: 0 | C3: 2.7
A4: 135.08 | B4: 0.02
A5: 498.63 | B5: 0.015 | C5: 2.49
A6: 1514.7 | B6: 0.01 | C6: 10.06
A7: 3029.39 | B7: 0.005 | C7: 25.21
A9: EMOLUMENTOS
A10: 0 | B10: 0.00025 | F10: IR RENDA FIXA
A11: 1 | B11: 0.00035 | F11: 0 | G11: 0.225
F12: 181 | G12: 0.2
A13: IR | F13: 361 | G13: 0.175
A14: 0 | B14: 0.21 | F14: 721 | G14: 0.15
A15: 1 | B15: 0.15
A17: DEDO DURO
B18: 5e-05

Sheet Mapa decisões
A1: Situação | B1: Descrição | C1: 1 Ganha / 0 Perde | G1: Prob. Ganhar | H1: =+COUNTIF(C2:C1048576,1)/COUNTA(C2:C1048576) -> 0.5
A2: =+ROMAN(ROW()-1) -> I | B2: Aumenta a demanda | C2: 1 | G2: Prob. Perder | H2: =1-H1 -> 0.5 | I2: =+(H2/IF(H1=0,1,H1))*ABS(H3)*Ibov!C1 -> 0.552559229
A3: =+ROMAN(ROW()-1) -> II | B3: aumenta a oferta | C3: 0 | G3: Var. Valor TR | H3: 0.01
A4: III
A5: IV
A6: V
A7: VI
A8: VII
A9: VIII
A10: IX
A11: X
A12: XI
A13: XII
A14: XIII
A15: XIV
A16: XV
A17: XVI
A18: XVII
A19: XVIII
A20: XIX
A21: =+ROMAN(ROW()-1) -> XX
A22: XXI
A23: XXII
A24: XXIII
A25: XXIV
A26: XXV
A27: XXVI
A28: XXVII
A29: XXVIII
A30: XXIX

Sheet Ibov
A1: Variação (%) | C1: =+SUM(C2:C1048576)/COUNT(C2:C500) -> 55.2559229
A2: -12.06 | B2: =+IF(ISNUMBER(A2)=TRUE,A2,"a") -> -12.06 | C2: =+IFERROR((B2-AVERAGE($B$2:$B$1048576))^2,"a") -> 153.7363819 | D2: =+_xlfn.STDEV.S(A2:A121) -> 7.617001972
A3: -9.55 | B3: =+IF(ISNUMBER(A3)=TRUE,A3,"a") -> -9.55 | C3: =+IFERROR((B3-AVERAGE($B$2:$B$1048576))^2,"a") -> 97.79326281
A4: -9.05 | B4: -9.05 | C4: =+IFERROR((B4-AVERAGE($B$2:$B$1048576))^2,"a") -> 88.15421519
A5: -1.23 | B5: =+IF(ISNUMBER(A5)=TRUE,A5,"a") -> -1.23 | C5: 2.461910431
A6: 2.04 | B6: 2.04 | C6: 2.893239002
A7: 12.68 | B7: 12.68 | C7: 152.2991057
A8: 2.31 | B8: 2.31 | C8: 3.884653288
A9: -4.93 | B9: -4.93 | C9: 27.76286281
A10: -10.98 | B10: -10.98 | C10: 128.120839
A11: -3.53 | B11: -3.53 | C11: 14.96952948
A12: 6.25 | B12: 6.25 | C12: 34.93935805
A13: 1.69 | B13: 1.69 | C13: 1.825072336
A14: 1.29 | B14: 1.29 | C14: 0.9043104308
A15: 4.02 | B15: 4.02 | C15: 13.54941043
A16: 1.82 | B16: 1.82 | C16: 2.193219955
A17: 0.37 | B17: 0.37 | C17: 0.0009580498866
A18: 8.51 | B18: 8.51 | C18: 66.76446281
A19: 0 | B19: 0 | C19: 0.114953288
A20: -0.49 | B20: -0.49 | C20: 0.6873199546
A21: -1.46 | B21: -1.46 | C21: 3.236572336
A22: 19.42 | B22: 19.42 | C22: 364.0827438
B23: a | C23: a
B24: a | C24: a
B25: a | C25: a
B26: a | C26: a
B27: a | C27: a
B28: a | C28: a
B29: a | C29: a
B30: a | C30: a
B31: a | C31: a
B32: a | C32: a
B33: a | C33: a
B34: a | C34: a
B35: a | C35: a
B36: a | C36: a
B37: a | C37: a
B38: a | C38: a
B39: a | C39: a
B40: a | C40: a
B41: a | C41: a
B42: a | C42: a
B43: a | C43: a
B44: a | C44: a
B45: a | C45: a
B46: a | C46: a
B47: a | C47: a
B48: a | C48: a
B49: a | C49: a
B50: a | C50: a
B51: a | C51: a
B52: a | C52: a
B53: a | C53: a
B54: a | C54: a
B55: a | C55: a
B56: a | C56: a
B57: a | C57: a
B58: a | C58: a
B59: a | C59: a
B60: a | C60: a
B61: a | C61: a
B62: a | C62: a
B63: a | C63: a
B64: a | C64: a
B65: a | C65: a
B66: a | C66: a
B67: =+IF(ISNUMBER(A67)=TRUE,A67,"a") -> a | C67: =+IFERROR((B67-AVERAGE($B$2:$B$1048576))^2,"a") -> a
B68: a | C68: a
B69: a | C69: a
B70: a | C70: a
B71: a | C71: a
B72: a | C72: a
B73: a | C73: a
B74: a | C74: a
B75: a | C75: a
B76: a | C76: a
B77: a | C77: a
B78: a | C78: a
B79: a | C79: a
B80: a | C80: a
B81: a | C81: a
B82: a | C82: a
B83: a | C83: a
B84: a | C84: a
B85: a | C85: a
B86: a | C86: a
B87: a | C87: a
B88: a | C88: a
B89: a | C89: a
B90: a | C90: a
B91: a | C91: a
B92: a | C92: a
B93: a | C93: a
B94: a | C94: a
B95: a | C95: a
B96: a | C96: a
B97: a | C97: a
B98: a | C98: a
B99: a | C99: a
B100: a | C100: a
B101: a | C101: a
B102: a | C102: a
B103: a | C103: a
B104: a | C104: a
B105: a | C105: a
B106: a | C106: a
B107: a | C107: a
B108: a | C108: a
B109: a | C109: a
B110: a | C110: a
B111: a | C111: a
B112: a | C112: a
B113: a | C113: a
B114: a | C114: a
B115: a | C115: a
B116: a | C116: a
B117: a | C117: a
B118: a | C118: a
B119: a | C119: a
B120: a | C120: a
B121: a | C121: a
B122: a | C122: a
B123: a | C123: a
B124: a | C124: a
B125: a | C125: a
B126: a | C126: a
B127: a | C127: a
B128: a | C128: a
B129: a | C129: a
B130: a | C130: a
B131: =+IF(ISNUMBER(A131)=TRUE,A131,"a") -> a | C131: =+IFERROR((B131-AVERAGE($B$2:$B$1048576))^2,"a") -> a
B132: a | C132: a
B133: a | C133: a
B134: a | C134: a
B135: a | C135: a
B136: a | C136: a
B137: a | C137: a
B138: a | C138: a
B139: a | C139: a
B140: a | C140: a
B141: a | C141: a
B142: a | C142: a
B143: a | C143: a
B144: a | C144: a
B145: a | C145: a
B146: a | C146: a
B147: a | C147: a
B148: a | C148: a
B149: a | C149: a
B150: a | C150: a
B151: a | C151: a
B152: a | C152: a
B153: a | C153: a
B154: a | C154: a
B155: a | C155: a
B156: a | C156: a
B157: a | C157: a
B158: a | C158: a
B159: a | C159: a
B160: a | C160: a
B161: a | C161: a
B162: a | C162: a
B163: a | C163: a
B164: a | C164: a
B165: a | C165: a
B166: a | C166: a
B167: a | C167: a
B168: a | C168: a
B169: a | C169: a
B170: a | C170: a
B171: a | C171: a
B172: a | C172: a
B173: a | C173: a
B174: a | C174: a
B175: a | C175: a
B176: a | C176: a
B177: a | C177: a
B178: a | C178: a
B179: a | C179: a
B180: a | C180: a
B181: a | C181: a
B182: a | C182: a
B183: a | C183: a
B184: a | C184: a
B185: a | C185: a
B186: a | C186: a
B187: a | C187: a
B188: a | C188: a
B189: a | C189: a
B190: a | C190: a
B191: a | C191: a
B192: a | C192: a
B193: a | C193: a
B194: a | C194: a
B195: =+IF(ISNUMBER(A195)=TRUE,A195,"a") -> a | C195: =+IFERROR((B195-AVERAGE($B$2:$B$1048576))^2,"a") -> a
B196: a | C196: a
B197: a | C197: a
B198: a | C198: a
B199: a | C199: a
B200: a | C200: a
... 300 more rows

Sheet Ação
A1: Variação (%) | C1: =+SUM(C2:C1048576)/COUNT(C2:C500) -> 9.009535398
A2: -1.173020528 | B2: =+IF(ISNUMBER(A2)=TRUE,A2,"a") -> -1.173020528 | C2: =+IFERROR((B2-AVERAGE($B$2:$B$1048576))^2,"a") -> 2.053475693
A3: 1.72 | B3: =+IF(ISNUMBER(A3)=TRUE,A3,"a") -> 1.72 | C3: =+IFERROR((B3-AVERAGE($B$2:$B$1048576))^2,"a") -> 2.1316735
A4: -4.69 | B4: -4.69 | C4: 24.50225081
A5: 6.03 | B5: 6.03 | C5: 33.29319047
A6: -1.99 | B6: -1.99 | C6: 5.062386731
A7: -2.97 | B7: -2.97 | C7: 10.4327374
A8: -2.99 | B8: -2.99 | C8: 10.56233639
A9: 3.38 | B9: 3.38 | C9: 9.734557068
A10: 1.94 | B10: 1.94 | C10: 2.822484575
A11: -3.33 | B11: -3.33 | C11: 12.88791927
A12: -0.67 | B12: -0.67 | C12: 0.8648531825
A13: 1.97 | B13: 1.97 | C13: 2.924186086 | E13: =+_xlfn.COVARIANCE.S(A2:A121,Ibov!A2:A121) -> -2.457096702
A14: 1.38 | B14: 1.38 | C14: 1.254456384
A15: 2.23 | B15: 2.23 | C15: 3.880999175
A16: 4.3 | B16: 4.3 | C16: 16.32180338
A17: -2.16 | B17: -2.16 | C17: 5.856278173
A18: -5.42 | B18: -5.42 | C18: 32.26211406
A19: -1.38 | B19: -1.38 | C19: 2.68951744
A20: 0.39 | B20: 0.39 | C20: 0.01690654511
A21: -6.79 | B21: -6.79 | C21: 49.70214509
A22: 0.47 | B22: 0.47 | C22: 0.04411057248
A23: -1.76 | B23: -1.76 | C23: 4.08029831
A24: 2.34 | B24: 2.34 | C24: 4.326504712
A25: 4.8 | B25: 4.8 | C25: 20.61182855
A26: 3.37 | B26: 3.37 | C26: 9.672256565
A27: 3.84 | B27: 3.84 | C27: 12.81658023
A28: 1.06 | B28: 1.06 | C28: 0.6400402743
A29: -2.7 | B29: -2.7 | C29: 8.761450988
A30: 0.84 | B30: 0.84 | C30: 0.3364291991
A31: -1.95 | B31: -1.95 | C31: 4.883988745
A32: -1.32 | B32: -1.32 | C32: 2.49632046
A33: 6.54 | B33: 6.54 | C33: 39.43871615
A34: -1.57 | B34: -1.57 | C34: 3.348807875
A35: 4.5 | B35: 4.5 | C35: 17.97781345
A36: -3.58 | B36: -3.58 | C36: 14.74540669
A37: 0.57 | B37: 0.57 | C37: 0.09611560669
A38: -0.6 | B38: -0.6 | C38: 0.7395567064
A39: 0.8 | B39: 0.8 | C39: 0.2916271854
A40: 0.96 | B40: 0.96 | C40: 0.4900352401
A41: -2.1 | B41: -2.1 | C41: 5.569481193
A42: 2.35 | B42: 2.35 | C42: 4.368205216
A43: 5.48 | B43: 5.48 | C43: 27.24866279
A44: 4.94 | B44: 4.94 | C44: 21.9026356
A45: 1.03 | B45: 1.03 | C45: 0.5929387641
A46: 3.75 | B46: 3.75 | C46: 12.18027569
A47: 2.85 | B47: 2.85 | C47: 6.708230387
A48: -1.85 | B48: -1.85 | C48: 4.451993779
A49: 3.26 | B49: 3.26 | C49: 9.000151027
A50: -0.46 | B50: -0.46 | C50: 0.5183637543
A51: 1.41 | B51: 1.41 | C51: 1.322557894
A52: -0.47 | B52: -0.47 | C52: 0.5328632509
A53: -2.73 | B53: -2.73 | C53: 8.939949478
A54: -2.91 | B54: -2.91 | C54: 10.04874042
A55: -0.4 | B55: -0.4 | C55: 0.4355667748
A56: 0 | B56: 0 | C56: 0.06758691168
A57: -0.22 | B57: -0.22 | C57: 0.2303758364
A58: -0.04 | B58: -0.04 | C58: 0.08998489799
A59: 0.57 | B59: 0.57 | C59: 0.09611560669
A60: -0.22 | B60: -0.22 | C60: 0.2303758364
A61: -2.45 | B61: -2.45 | C61: 7.343963573
A62: -3.92 | B62: -3.92 | C62: 17.47218957
A63: 1.21 | B63: 1.21 | C63: 0.9025478257
A64: 1.05 | B64: 1.05 | C64: 0.6241397709
A65: 0.94 | B65: 0.94 | C65: 0.4624342333
A66: 0.34 | B66: 0.34 | C66: 0.006404028004
A67: -2.94 | B67: =+IF(ISNUMBER(A67)=TRUE,A67,"a") -> -2.94 | C67: =+IFERROR((B67-AVERAGE($B$2:$B$1048576))^2,"a") -> 10.23983891
A68: -2.94 | B68: -2.94 | C68: 10.23983891
A69: 2.01 | B69: 2.01 | C69: 3.062588099
A70: -2.56 | B70: -2.56 | C70: 7.952258036
A71: -7.65 | B71: -7.65 | C71: 62.56770179
A72: -2.8 | B72: -2.8 | C72: 9.363445954
A73: 1.27 | B73: 1.27 | C73: 1.020150846
A74: 0.51 | B74: 0.51 | C74: 0.06251258617
A75: 6.58 | B75: 6.58 | C75: 39.94271816
A76: -0.43 | B76: -0.43 | C76: 0.4760652646
A77: 3.2 | B77: 3.2 | C77: 8.643748006
A78: 2.13 | B78: 2.13 | C78: 3.49699414
A79: 5.43 | B79: 5.43 | C79: 26.72916027
A80: -1.53 | B80: -1.53 | C80: 3.204009888
A81: 1.55 | B81: 1.55 | C81: 1.664164942
A82: 0.87 | B82: 0.87 | C82: 0.3721307093
A83: 5.17 | B83: 5.17 | C83: 24.10834718
A84: 1.67 | B84: 1.67 | C84: 1.988170983
A85: 1.56 | B85: 1.56 | C85: 1.690065445
A86: -5.7 | B86: -5.7 | C86: 35.52129996
A87: -3.73 | B87: -3.73 | C87: 15.91989914
A88: 1.17 | B88: 1.17 | C88: 0.828145812
A89: -3.43 | B89: -3.43 | C89: 13.61591424
A90: -1.73 | B90: -1.73 | C90: 3.95999982
A91: 1.25 | B91: 1.25 | C91: 0.9801498393
A92: -2.64 | B92: -2.64 | C92: 8.409854008
A93: 1.48 | B93: 1.48 | C93: 1.488461418
A94: 2.92 | B94: 2.92 | C94: 7.075733911
A95: 1.07 | B95: 1.07 | C95: 0.6561407778
A96: -1.23 | B96: -1.23 | C96: 2.220024991
A97: -0.46 | B97: -0.46 | C97: 0.5183637543
A98: 1.54 | B98: 1.54 | C98: 1.638464439
A99: -2.01 | B99: -2.01 | C99: 5.152785724
A100: -0.46 | B100: -0.46 | C100: 0.5183637543
A101: -4 | B101: -4 | C101: 18.14738554
A102: -2.69 | B102: -2.69 | C102: 8.702351491
A103: 1.78 | B103: 1.78 | C103: 2.310476521
A104: 10.13 | B104: 10.13 | C104: 97.41739688
A105: 2 | B105: 2 | C105: 3.027687596
A106: -3.57 | B106: -3.57 | C106: 14.66870719
A107: 1.17 | B107: 1.17 | C107: 0.828145812
A108: 1.14 | B108: 1.14 | C108: 0.7744443017
A109: 3.22 | B109: 3.22 | C109: 8.761749013
A110: -0.72 | B110: -0.72 | C110: 0.9603506653
A111: -3.27 | B111: -3.27 | C111: 12.46072229
A112: 0.66 | B112: 0.66 | C112: 0.1600201375
A113: -0.65 | B113: -0.65 | C113: 0.8280541893
A114: 1.5 | B114: 1.5 | C114: 1.537662425
A115: -1.61 | B115: -1.61 | C115: 3.496805861
A116: 1.68 | B116: 1.68 | C116: 2.016471486
A117: 1.76 | B117: 1.76 | C117: 2.250075514
A118: -5.29 | B118: -5.29 | C118: 30.8022206
A119: 3.53 | B119: 3.53 | C119: 10.69306462
A120: 2.12 | B120: 2.12 | C120: 3.459693637
A121: 5.37 | B121: 5.37 | C121: 26.11235725
B122: a | C122: a
B123: a | C123: a
B124: a | C124: a
B125: a | C125: a
B126: a | C126: a
B127: a | C127: a
B128: a | C128: a
B129: a | C129: a
B130: a | C130: a
B131: =+IF(ISNUMBER(A131)=TRUE,A131,"a") -> a | C131: =+IFERROR((B131-AVERAGE($B$2:$B$1048576))^2,"a") -> a
B132: a | C132: a
B133: a | C133: a
B134: a | C134: a
B135: a | C135: a
B136: a | C136: a
B137: a | C137: a
B138: a | C138: a
B139: a | C139: a
B140: a | C140: a
B141: a | C141: a
B142: a | C142: a
B143: a | C143: a
B144: a | C144: a
B145: a | C145: a
B146: a | C146: a
B147: a | C147: a
B148: a | C148: a
B149: a | C149: a
B150: a | C150: a
B151: a | C151: a
B152: a | C152: a
B153: a | C153: a
B154: a | C154: a
B155: a | C155: a
B156: a | C156: a
B157: a | C157: a
B158: a | C158: a
B159: a | C159: a
B160: a | C160: a
B161: a | C161: a
B162: a | C162: a
B163: a | C163: a
B164: a | C164: a
B165: a | C165: a
B166: a | C166: a
B167: a | C167: a
B168: a | C168: a
B169: a | C169: a
B170: a | C170: a
B171: a | C171: a
B172: a | C172: a
B173: a | C173: a
B174: a | C174: a
B175: a | C175: a
B176: a | C176: a
B177: a | C177: a
B178: a | C178: a
B179: a | C179: a
B180: a | C180: a
B181: a | C181: a
B182: a | C182: a
B183: a | C183: a
B184: a | C184: a
B185: a | C185: a
B186: a | C186: a
B187: a | C187: a
B188: a | C188: a
B189: a | C189: a
B190: a | C190: a
B191: a | C191: a
B192: a | C192: a
B193: a | C193: a
B194: a | C194: a
B195: =+IF(ISNUMBER(A195)=TRUE,A195,"a") -> a | C195: =+IFERROR((B195-AVERAGE($B$2:$B$1048576))^2,"a") -> a
B196: a | C196: a
B197: a | C197: a
B198: a | C198: a
B199: a | C199: a
B200: a | C200: a
... 300 more rows
